[Event "WYCC 2018 G18"]
[Site "Halkidiki"]
[Date "2018.10.30"]
[Round "11"]
[White "Vlkova, Anezka"]
[Black "Nemcova, Kamila"]
[Result "1-0"]
[ECO "B25"]
[WhiteElo "1925"]
[BlackElo "1879"]
[Annotator "NA"]
[PlyCount "69"]
[EventDate "2018.10.20"]
[EventType "swiss"]
[EventCountry "GRE"]
[SourceTitle "playchess.com"]
[Source "ChessBase"]
[SourceQuality "1"]
[TimeControl "40/5400+30:1800+30"]

1. e4 {[%emt 0:00:00]} c5 {[%emt 0:00:00]} 2. Nc3 {[%emt 0:00:00]} Nc6 {[%emt 0:00:00]} 3. g3 {[%emt 0:00:00]} g6 {[%emt 0:00:00]} 4. Bg2 {[%emt 0:00:00]} Bg7 {[%emt 0:00:05]} 5. d3 {[%emt 0:00:00]} d6 {[%emt 0:00:16]} 6. Nge2 {[%emt 0:00:00]} Rb8 {[%emt 0:00:19]} 7. O-O {[%emt 0:01:28]} e6 {[%emt 0:03:27]} 8. a3 {[%emt 0:04:11]} b5 {[%emt 0:00:35]} 9. Be3 {[%emt 0:00:40]} b4 {[%emt 0:08:30]} 10. axb4 {[%emt 0:00:18]} cxb4 {[%emt 0:00:08]} 11. Na4 {[%emt 0:00:47]} Nge7 {[%emt 0:01:43]} 12. d4 {[%emt 0:01:37]} d5 {[%emt 0:07:26]} 13. e5 {[%emt 0:02:14]} Ba6 {[%emt 0:08:27]} 14. Nc5 {[%emt 0:05:07]} Bc4 {[%emt 0:01:47]} 15. Re1 {[%emt 0:12:59]} Qb6 {[%emt 0:03:49]} 16. b3 {[%emt 0:01:14]} Bb5 {[%emt 0:04:02]} 17. Bf1 {[%emt 0:08:39]} Nf5 {[%emt 0:06:02]} 18. Nf4 {[%emt 0:03:59]} Nxe3 {[%emt 0:16:45]} 19. fxe3 {[%emt 0:02:16]} Bxe5 {[%emt 0:15:39]} 20. Bxb5 {[%emt 0:09:40]} Qxb5 {[%emt 0:00:40]} 21. Nfxe6 {[%emt 0:13:26]} fxe6 {[%emt 0:02:14]} 22. Qg4 {[%emt 0:01:27]} Nd8 {[%emt 0:05:33]} 23. Rxa7 {[%emt 0:01:38]} Qb6 {[%emt 0:00:29]} 24. Ra6 {[%emt 0:01:25]} Qb5 {[%emt 0:05:38]} 25. Rxe6+ {[%emt 0:04:37]} Nxe6 {[%emt 0:05:51]} 26. Qxe6+ {[%emt 0:00:09]} Kd8 {[%emt 0:00:29]} 27. Qxe5 {[%emt 0:01:24]} Re8 {[%emt 0:01:07]} 28. Qxd5+ {[%emt 0:03:29]} Kc8 {[%emt 0:00:15]} 29. Rf1 {[%emt 0:04:24]} Rxe3 {[%emt 0:01:47]} 30. Rf8+ {[%emt 0:00:25]} Re8 {[%emt 0:00:28]} 31. Qe6+ {[%emt 0:01:51]} Kd8 {[%emt 0:01:14]} 32. Qd6+ {[%emt 0:01:53]} Kc8 {[%emt 0:00:03]} 33. Ne6 {[%emt 0:01:07]} Rb7 {[%emt 0:00:52]} 34. Qd8+ {[%emt 0:00:14]} Rxd8 {[%emt 0:00:13]} 35. Rxd8# {[%emt 0:00:06]} 1-0

[Event "WYCC 2018 G18"]
[Site "Halkidiki"]
[Date "2018.10.30"]
[Round "11"]
[White "Zairbek kyzy, Begimay"]
[Black "Afonasieva, Anna"]
[Result "0-1"]
[ECO "B10"]
[WhiteElo "1919"]
[BlackElo "2245"]
[Annotator "NA"]
[PlyCount "124"]
[EventDate "2018.10.20"]
[EventType "swiss"]
[EventCountry "GRE"]
[SourceTitle "playchess.com"]
[Source "ChessBase"]
[SourceQuality "1"]
[TimeControl "40/5400+30:1800+30"]

1. e4 {[%emt 0:00:00]} c6 {[%emt 0:00:00]} 2. Nf3 {[%emt 0:00:00]} d5 {[%emt 0:00:00]} 3. e5 {[%emt 0:00:00]} Bf5 {[%emt 0:00:21]} 4. Nh4 {[%emt 0:00:05]} Bd7 {[%emt 0:01:43]} 5. d4 {[%emt 0:00:09]} c5 {[%emt 0:00:46]} 6. c3 {[%emt 0:00:21]} Nc6 {[%emt 0:00:56]} 7. Be3 {[%emt 0:03:16]} Qb6 {[%emt 0:06:34]} 8. Qd2 {[%emt 0:01:19]} cxd4 {[%emt 0:07:26]} 9. cxd4 {[%emt 0:00:14]} e6 {[%emt 0:00:12]} 10. Be2 {[%emt 0:01:48]} f6 {[%emt 0:04:46]} 11. f4 {[%emt 0:04:40]} Be7 {[%emt 0:02:00]} 12. Nf3 {[%emt 0:02:54]} Nh6 {[%emt 0:03:07]} 13. h3 {[%emt 0:01:17]} O-O {[%emt 0:02:13]} 14. Nc3 {[%emt 0:02:14]} Rac8 {[%emt 0:01:16]} 15. Bd3 {[%emt 0:06:36]} fxe5 {[%emt 0:04:30]} 16. fxe5 {[%emt 0:02:18]} Nf5 {[%emt 0:00:22]} 17. Bf2 {[%emt 0:03:23]} Na5 {[%emt 0:01:25]} 18. Rc1 {[%emt 0:02:12]} Nc4 {[%emt 0:03:13]} 19. Bxc4 {[%emt 0:00:35]} Rxc4 {[%emt 0:00:04]} 20. O-O {[%emt 0:00:36]} Qd8 {[%emt 0:03:50]} 21. b3 {[%emt 0:03:21]} Rc6 {[%emt 0:08:32]} 22. Ne2 {[%emt 0:01:10]} Rxc1 {[%emt 0:01:34]} 23. Rxc1 {[%emt 0:00:49]} Bb5 {[%emt 0:00:48]} 24. Nc3 {[%emt 0:09:11]} Ba6 {[%emt 0:04:53]} 25. Na4 {[%emt 0:02:03]} b6 {[%emt 0:00:28]} 26. Qc3 {[%emt 0:01:07] [#]} Bg5 {[%emt 0:11:14]} (26... Be2 $1 $17 27. Qc7 Bxf3 28. Qxd8 Bxd8 29. gxf3 Bh4) 27. Rc2 {[%emt 0:02:28]} Bf4 {[%emt 0:01:25]} 28. Qc7 {[%emt 0:03:13]} Qxc7 {[%emt 0:02:09]} 29. Rxc7 {[%emt 0:00:13]} Rc8 {[%emt 0:00:33]} 30. Rxc8+ {[%emt 0:00:52]} Bxc8 {[%emt 0:00:04]} 31. Nc3 {[%emt 0:00:38]} Ba6 {[%emt 0:01:28]} 32. b4 {[%emt 0:01:08]} (32. g4 $15 Ne3 33. Bxe3 Bxe3+ 34. Kg2) 32... Bc4 {[%emt 0:04:23]} 33. a4 {[%emt 0:03:57]} Kf7 {[%emt 0:02:23]} 34. g4 {[%emt 0:02:06]} Ne3 {[%emt 0:01:52]} 35. Nd2 {[%emt 0:02:14]} Bd3 {[%emt 0:02:39]} 36. Nf3 {[%emt 0:01:49]} Nc2 {[%emt 0:03:39]} 37. b5 {[%emt 0:03:06]} h6 {[%emt 0:00:51]} 38. Bh4 {[%emt 0:03:42]} Bc1 {[%emt 0:08:42]} 39. Bf2 {[%emt 0:02:34]} Bc4 {[%emt 0:01:03]} 40. Kg2 {[%emt 0:00:00]} Bb3 {[%emt 0:00:00]} 41. Ng1 {[%emt 0:06:15]} Nb4 {[%emt 0:05:57]} 42. Nge2 {[%emt 0:00:36]} Bb2 {[%emt 0:04:15]} 43. Be3 {[%emt 0:01:27]} Nd3 {[%emt 0:06:13]} 44. Kf3 {[%emt 0:05:06]} Ba3 {[%emt 0:02:45]} 45. g5 {[%emt 0:05:55]} hxg5 {[%emt 0:01:34]} 46. Bxg5 {[%emt 0:00:13]} Bb4 {[%emt 0:00:51]} 47. Bd8 {[%emt 0:06:14]} Ke8 {[%emt 0:00:42]} 48. Bc7 {[%emt 0:02:06]} Kd7 {[%emt 0:00:07]} 49. Bb8 {[%emt 0:00:33]} Kc8 {[%emt 0:00:12]} 50. Ke3 {[%emt 0:03:27]} Nb2 {[%emt 0:01:00]} 51. Bd6 {[%emt 0:00:05]} Bxd6 {[%emt 0:01:43]} 52. exd6 {[%emt 0:00:07]} Kd7 {[%emt 0:00:08]} 53. Kf4 {[%emt 0:00:37]} Kxd6 {[%emt 0:00:17]} 54. Kg5 {[%emt 0:00:06]} Bc2 {[%emt 0:02:41]} 55. Nf4 {[%emt 0:01:04]} Nxa4 {[%emt 0:03:19]} 56. Na2 {[%emt 0:00:21]} (56. Nce2 {was the only defense.}) 56... Bb1 {[%emt 0:02:06]} 57. Nb4 {[%emt 0:00:39]} Nc3 {[%emt 0:00:14]} 58. Nh5 {[%emt 0:01:07]} Nxb5 {[%emt 0:00:44]} 59. Nxg7 {[%emt 0:00:19]} a5 {[%emt 0:00:13]} 60. Na6 {[%emt 0:00:29]} a4 {[%emt 0:01:10]} 61. Kf6 {[%emt 0:00:37]} a3 {[%emt 0:01:02]} 62. Nb4 $19 {[%emt 0:01:59]} Nxd4 {[%emt 0:00:11]} 0-1

[Event "WYCC 2018 G18"]
[Site "Halkidiki"]
[Date "2018.10.30"]
[Round "11"]
[White "Gillis Onieva, Celia"]
[Black "Chitlange Sakshi"]
[Result "0-1"]
[ECO "E16"]
[WhiteElo "1892"]
[BlackElo "2237"]
[Annotator "NA"]
[PlyCount "114"]
[EventDate "2018.10.20"]
[EventType "swiss"]
[EventCountry "GRE"]
[SourceTitle "playchess.com"]
[Source "ChessBase"]
[SourceQuality "1"]
[TimeControl "40/5400+30:1800+30"]

1. d4 {[%emt 0:00:00]} Nf6 {[%emt 0:00:00]} 2. c4 {[%emt 0:00:00]} e6 {[%emt 0:00:00]} 3. Nf3 {[%emt 0:00:08]} b6 {[%emt 0:02:00]} 4. g3 {[%emt 0:02:32]} Bb7 {[%emt 0:01:06]} 5. Bg2 {[%emt 0:00:36]} Bb4+ {[%emt 0:00:30]} 6. Bd2 {[%emt 0:02:41]} Be7 {[%emt 0:00:05]} 7. O-O {[%emt 0:02:53]} O-O {[%emt 0:00:18]} 8. Nc3 {[%emt 0:01:08]} d5 {[%emt 0:01:11]} 9. cxd5 {[%emt 0:02:19]} exd5 {[%emt 0:00:32]} 10. Bf4 {[%emt 0:00:42]} c5 {[%emt 0:06:26]} 11. Rc1 {[%emt 0:06:42] E18: Queen's Indian: Old Main Line (4 g3 Bb7 5 Bg2 Be7 6 0-0 0-0 7 Nc3)} (11. dxc5 bxc5 12. Ne5 Na6 13. Nc4 Qd7 14. Na5 Rad8 15. Nxb7 Qxb7 16. Qb3 Qc6 17. Rfd1 c4 18. Qb5 Qxb5 19. Nxb5 Rd7 20. b3 cxb3 21. axb3 {1-0 (33) Lenderman,A (2611)-Morrison,W (2334) Washington DC 2018}) 11... Nbd7 {[%emt 0:05:43] LiveBook: 9 Games} 12. Qa4 {[%emt 0:10:14]} a6 {[%emt 0:06:28]} 13. Rfd1 {[%emt 0:01:07]} b5 {[%emt 0:01:43]} 14. Qc2 {[%emt 0:01:30]} c4 $146 {[%emt 0:00:27]} ({Predecessor:} 14... b4 15. Na4 c4 16. Ne5 Nb6 17. Nc5 Bc8 18. Qd2 a5 19. a3 {1-0 (31) Zivanovic,I-Kovacevic,D Virovitica 1980}) 15. Nd2 {[%emt 0:07:30]} Nb6 {[%emt 0:08:09]} 16. e4 {[%emt 0:08:19]} dxe4 {[%emt 0:00:33]} 17. Ndxe4 {[%emt 0:00:27]} Nfd5 {[%emt 0:03:51]} 18. Nxd5 {[%emt 0:03:50]} Nxd5 {[%emt 0:04:03]} 19. Nc3 {[%emt 0:05:19]} Nb4 {[%emt 0:03:23]} 20. Qe2 {[%emt 0:11:43]} Bxg2 {[%emt 0:00:16]} 21. Kxg2 {[%emt 0:00:03]} Nd3 {[%emt 0:01:56]} 22. Rxd3 {[%emt 0:00:22]} cxd3 {[%emt 0:00:13]} 23. Qxd3 {[%emt 0:00:46]} b4 {[%emt 0:02:55]} 24. Ne4 {[%emt 0:03:04]} Qd5 {[%emt 0:03:23]} 25. Rc7 {[%emt 0:03:28]} f5 {[%emt 0:05:06]} 26. Rxe7 {[%emt 0:01:30]} Rae8 {[%emt 0:00:34]} 27. Re5 {[%emt 0:11:23]} Rxe5 {[%emt 0:01:05]} 28. Bxe5 {[%emt 0:00:09]} Qxe4+ {[%emt 0:01:43]} 29. Qxe4 {[%emt 0:00:47]} fxe4 {[%emt 0:00:02]} 30. Bd6 {[%emt 0:02:27]} Rd8 {[%emt 0:00:23]} 31. Bxb4 {[%emt 0:03:23]} Rxd4 {[%emt 0:00:02]} 32. Bc3 {[%emt 0:00:12]} Rd3 {[%emt 0:00:15]} 33. Kf1 {[%emt 0:01:05]} Kf7 {[%emt 0:00:18]} 34. Ke2 {[%emt 0:00:53]} g6 {[%emt 0:00:27]} 35. h4 {[%emt 0:00:35]} Ke6 {[%emt 0:00:16]} 36. Bg7 {[%emt 0:00:57]} Kd5 {[%emt 0:01:15]} 37. Bc3 {[%emt 0:00:25]} Kc4 {[%emt 0:00:09]} 38. Ba5 {[%emt 0:01:21]} Kb5 {[%emt 0:01:04]} 39. Bc3 {[%emt 0:00:05]} a5 {[%emt 0:00:11]} 40. Bf6 {[%emt 0:00:00]} a4 {[%emt 0:00:00]} 41. Be7 {[%emt 0:09:58]} Kc4 {[%emt 0:06:03]} 42. Bf8 {[%emt 0:04:36]} Rd8 {[%emt 0:00:59]} 43. Bg7 {[%emt 0:05:15]} Rd7 {[%emt 0:00:27]} 44. Bf6 {[%emt 0:01:47]} Kd5 {[%emt 0:00:35]} 45. Bc3 {[%emt 0:04:41]} Ke6 {[%emt 0:01:57]} 46. Ke3 {[%emt 0:04:20]} Kf5 {[%emt 0:00:08]} 47. Bb4 {[%emt 0:01:11]} Rd3+ {[%emt 0:00:46]} 48. Ke2 {[%emt 0:00:04]} Kg4 {[%emt 0:00:11]} 49. Bc5 {[%emt 0:00:23]} Rd5 {[%emt 0:00:41]} 50. Bb4 {[%emt 0:02:05]} Rd4 {[%emt 0:00:48]} 51. Bc3 {[%emt 0:01:25]} Rc4 {[%emt 0:00:14]} 52. Be5 {[%emt 0:04:36]} Rc1 {[%emt 0:04:49]} 53. Ke3 {[%emt 0:00:34]} Re1+ {[%emt 0:00:23]} 54. Kd2 {[%emt 0:00:01]} Ra1 {[%emt 0:00:28]} 55. a3 {[%emt 0:00:44]} Kf3 {[%emt 0:00:16]} 56. b3 {[%emt 0:02:22]} Ra2+ {[%emt 0:00:30]} 57. Ke1 {[%emt 0:00:29]} axb3 {[%emt 0:00:12]} 0-1

[Event "WYCC 2018 G18"]
[Site "Halkidiki"]
[Date "2018.10.30"]
[Round "11"]
[White "Nistor, Valentina"]
[Black "Vanduyfhuys, Daria"]
[Result "0-1"]
[ECO "B30"]
[WhiteElo "1881"]
[BlackElo "2058"]
[Annotator "NA"]
[PlyCount "146"]
[EventDate "2018.10.20"]
[EventType "swiss"]
[EventCountry "GRE"]
[SourceTitle "playchess.com"]
[Source "ChessBase"]
[SourceQuality "1"]
[TimeControl "40/5400+30:1800+30"]

1. e4 {[%emt 0:00:00]} c5 {[%emt 0:00:00]} 2. Nf3 {[%emt 0:00:00]} Nc6 {[%emt 0:00:00]} 3. c3 {[%emt 0:00:00]} d5 {[%emt 0:00:00]} 4. exd5 {[%emt 0:00:00]} Qxd5 {[%emt 0:00:04]} 5. d4 {[%emt 0:00:06]} Nf6 {[%emt 0:01:32]} 6. Be3 {[%emt 0:00:42]} cxd4 {[%emt 0:00:45]} 7. cxd4 {[%emt 0:00:08]} e6 {[%emt 0:00:17]} 8. Nc3 {[%emt 0:01:08]} Qd8 {[%emt 0:00:28]} 9. a3 {[%emt 0:02:24]} Be7 {[%emt 0:03:01]} 10. Bd3 {[%emt 0:01:49]} O-O {[%emt 0:00:16]} 11. O-O {[%emt 0:00:21]} b6 {[%emt 0:01:28]} 12. Qc2 {[%emt 0:07:32]} Bb7 {[%emt 0:01:22]} 13. Rad1 {[%emt 0:07:35] B22: Sicilian: 2 c3} h6 {[%emt 0:06:29]} (13... g6 14. Rfe1 Rc8 15. Qe2 Re8 16. Bh6 Ng4 17. Bf4 Nf6 18. Bc4 Na5 19. Bb5 Bc6 20. Ba6 Bb7 21. Bb5 Bc6 22. Ba6 Bb7 {½-½ (23) Lindberg,B (2416)-Golubka,P (2478) Gothenburg 2018}) 14. Qd2 {[%emt 0:02:50]} Re8 {[%emt 0:05:50]} 15. Rfe1 {[%emt 0:07:50]} Rc8 {[%emt 0:03:22]} 16. Qe2 {[%emt 0:08:23]} Nd5 $146 {[%emt 0:07:22]} ({Predecessor:} 16... Bf8 17. Ne5 Re7 18. Bb1 Qc7 19. Bf4 Nxe5 20. Bxe5 {0-1 (44) Tuominen,M-Ebeling,M (2320) Tampere 1988}) 17. Bc1 {[%emt 0:11:23]} Na5 {[%emt 0:17:39]} 18. Ne5 {[%emt 0:11:59]} Bg5 {[%emt 0:10:24]} 19. Qh5 {[%emt 0:03:26]} Rf8 {[%emt 0:06:03]} 20. Ne4 $2 {[%emt 0:05:33]} (20. Bxg5 $14 {keeps the upper hand.} Qxg5 21. Qxg5 hxg5 22. Nb5) 20... Bxc1 {[%emt 0:03:47]} 21. Rxc1 {[%emt 0:01:36]} Rxc1 {[%emt 0:01:06]} 22. Rxc1 {[%emt 0:00:05]} Nf4 {[%emt 0:00:25]} 23. Qf3 {[%emt 0:05:55]} Nxd3 {[%emt 0:04:01]} 24. Qxd3 {[%emt 0:00:32]} Qd5 {[%emt 0:00:30]} 25. f3 {[%emt 0:07:16]} Rd8 {[%emt 0:00:53]} 26. Ng4 {[%emt 0:04:10]} Qxd4+ {[%emt 0:02:27]} 27. Qxd4 {[%emt 0:00:07]} Rxd4 {[%emt 0:00:04]} 28. Ngf2 {[%emt 0:01:19]} f5 {[%emt 0:02:31]} 29. Nc3 {[%emt 0:00:39]} Ba6 {[%emt 0:02:34]} 30. b4 {[%emt 0:02:40]} Nb3 {[%emt 0:01:06]} 31. Re1 {[%emt 0:01:58]} Bc4 {[%emt 0:00:31]} 32. Nfd1 {[%emt 0:00:55]} Rd3 {[%emt 0:01:52]} 33. Kf2 {[%emt 0:00:58]} Kf7 {[%emt 0:01:40]} 34. Kg3 {[%emt 0:01:26]} Kf6 {[%emt 0:01:30]} 35. Ne2 {[%emt 0:00:38]} Rxd1 {[%emt 0:04:08]} 36. Rxd1 {[%emt 0:00:11]} Bxe2 {[%emt 0:00:02]} 37. Rd7 {[%emt 0:00:12]} a5 {[%emt 0:00:14]} 38. bxa5 {[%emt 0:01:49]} Nxa5 {[%emt 0:00:47]} 39. a4 {[%emt 0:02:07]} Bc4 {[%emt 0:09:22]} 40. Rd6 {[%emt 0:00:00]} b5 {[%emt 0:00:00]} 41. Ra6 {[%emt 0:04:22]} Nb3 {[%emt 0:02:16]} 42. axb5 {[%emt 0:02:03]} Bxb5 {[%emt 0:00:07]} 43. Rb6 {[%emt 0:00:10]} Bc4 {[%emt 0:00:13]} 44. h4 {[%emt 0:00:44]} Bd5 {[%emt 0:00:57]} 45. Kf4 {[%emt 0:01:26]} g5+ {[%emt 0:01:33]} 46. hxg5+ {[%emt 0:00:06]} hxg5+ {[%emt 0:00:02]} 47. Ke3 {[%emt 0:00:17]} Ke5 {[%emt 0:00:50]} 48. Rb4 {[%emt 0:00:51]} f4+ {[%emt 0:01:48]} 49. Kf2 {[%emt 0:01:33]} Nc5 {[%emt 0:01:24]} 50. Rb8 {[%emt 0:00:38]} Nd7 {[%emt 0:00:11]} 51. Rg8 {[%emt 0:00:26]} Kf5 {[%emt 0:00:05]} 52. Rg7 {[%emt 0:01:18]} Ne5 {[%emt 0:00:29]} 53. Rg8 {[%emt 0:01:14]} g4 {[%emt 0:01:26]} 54. Rf8+ {[%emt 0:00:40]} Kg5 {[%emt 0:00:06]} 55. Rg8+ {[%emt 0:00:22]} Kh5 {[%emt 0:00:26]} 56. Rf8 {[%emt 0:02:12]} gxf3 {[%emt 0:01:33]} 57. gxf3 {[%emt 0:00:11]} Kg5 {[%emt 0:00:06]} 58. Rg8+ {[%emt 0:00:12]} Kf6 {[%emt 0:00:07]} 59. Rd8 {[%emt 0:00:56]} Nxf3 {[%emt 0:01:27]} 60. Rf8+ {[%emt 0:00:50]} Ke5 {[%emt 0:00:07]} 61. Rb8 {[%emt 0:00:10]} Nd4 {[%emt 0:00:26]} 62. Rb4 {[%emt 0:00:15]} Ke4 {[%emt 0:00:08]} 63. Rb1 {[%emt 0:00:11]} e5 {[%emt 0:00:43]} 64. Re1+ {[%emt 0:00:16]} Kf5 {[%emt 0:00:06]} 65. Rd1 {[%emt 0:00:36]} f3 {[%emt 0:01:12]} 66. Ke3 {[%emt 0:00:16]} Be4 {[%emt 0:00:25]} 67. Rh1 {[%emt 0:00:39]} Nc2+ {[%emt 0:00:10]} 68. Kf2 {[%emt 0:00:08]} Kg4 {[%emt 0:00:47]} 69. Rg1+ {[%emt 0:00:11]} Kf4 $19 {[%emt 0:00:06]} 70. Rh1 {[%emt 0:00:05]} Bf5 {[%emt 0:00:36]} 71. Rh4+ {[%emt 0:00:54]} Bg4 {[%emt 0:00:05]} 72. Rh8 {[%emt 0:00:11]} e4 {[%emt 0:00:08]} 73. Rf8+ {[%emt 0:00:20]} Bf5 {[%emt 0:00:06]} 0-1

[Event "WYCC 2018 G18"]
[Site "Halkidiki"]
[Date "2018.10.30"]
[Round "11"]
[White "Buchta, Agnieszka"]
[Black "Prakapuk, Vera"]
[Result "0-1"]
[ECO "B12"]
[WhiteElo "1879"]
[BlackElo "1949"]
[Annotator "NA"]
[PlyCount "144"]
[EventDate "2018.10.20"]
[EventType "swiss"]
[EventCountry "GRE"]
[SourceTitle "playchess.com"]
[Source "ChessBase"]
[SourceQuality "1"]
[TimeControl "40/5400+30:1800+30"]

1. e4 {[%emt 0:00:00]} c6 {[%emt 0:00:00]} 2. d4 {[%emt 0:00:00]} d5 {[%emt 0:00:00]} 3. e5 {[%emt 0:00:00]} Bf5 {[%emt 0:00:00]} 4. c4 {[%emt 0:00:00]} e6 {[%emt 0:00:00]} 5. Nc3 {[%emt 0:00:02]} Ne7 {[%emt 0:00:02]} 6. a3 {[%emt 0:00:12]} dxc4 {[%emt 0:00:11] B12: Caro-Kann: Advance Variation} 7. Bxc4 {[%emt 0:00:03]} Nd7 {[%emt 0:00:08]} 8. Nge2 {[%emt 0:00:11]} Nb6 {[%emt 0:00:25]} 9. Bb3 {[%emt 0:00:22]} Qd7 {[%emt 0:00:30]} 10. O-O {[%emt 0:02:18]} (10. Ng3 Bg6 11. h4 h6 12. Be3 Nf5 13. h5 Bh7 14. Nxf5 Bxf5 {0-1 (33) Karthikeyan,M (2578)-Berkes,F (2648) Moscow 2017}) 10... Bg6 {[%emt 0:02:04]} 11. Be3 {[%emt 0:02:39]} Nf5 {[%emt 0:01:00]} 12. Qd2 {[%emt 0:02:49]} Be7 {[%emt 0:09:21]} 13. Nf4 {[%emt 0:04:38]} O-O {[%emt 0:05:46]} 14. g3 $146 {[%emt 0:06:35]} ({Predecessor:} 14. Rad1) 14... c5 {[%emt 0:13:06]} 15. d5 {[%emt 0:12:52]} c4 {[%emt 0:01:50]} 16. Ba2 {[%emt 0:02:47]} Nxe3 {[%emt 0:00:24]} 17. Qxe3 {[%emt 0:07:48]} exd5 {[%emt 0:02:42]} 18. Rfd1 {[%emt 0:17:55]} Bg5 {[%emt 0:02:32]} 19. b3 {[%emt 0:08:05]} Bxf4 {[%emt 0:02:51]} 20. Qxf4 {[%emt 0:02:59]} Qc6 {[%emt 0:08:54]} 21. Rac1 {[%emt 0:07:40]} Bd3 {[%emt 0:12:07]} 22. Rd2 {[%emt 0:09:09]} Rae8 {[%emt 0:04:19]} 23. Ne2 {[%emt 0:05:32]} Qg6 {[%emt 0:03:47]} 24. Qd4 {[%emt 0:03:16]} Qe4 {[%emt 0:00:57]} 25. Qxe4 {[%emt 0:01:39]} Bxe4 {[%emt 0:01:24]} 26. bxc4 {[%emt 0:00:58]} dxc4 {[%emt 0:00:42]} 27. Bxc4 {[%emt 0:01:36]} Nxc4 {[%emt 0:00:38]} 28. Rxc4 {[%emt 0:00:02]} Rxe5 {[%emt 0:00:08]} 29. f4 {[%emt 0:01:17]} Ree8 {[%emt 0:00:47]} 30. Nc3 {[%emt 0:00:55]} Bc6 {[%emt 0:00:11]} 31. a4 {[%emt 0:00:38]} g6 {[%emt 0:01:02]} 32. Kf2 {[%emt 0:00:13]} Kg7 {[%emt 0:01:37]} 33. Nb5 {[%emt 0:00:31]} a6 {[%emt 0:00:42]} 34. Nd6 {[%emt 0:00:34]} Rd8 {[%emt 0:04:57]} 35. Rcd4 {[%emt 0:00:07]} Kg8 {[%emt 0:00:53]} 36. a5 {[%emt 0:00:51]} Rd7 {[%emt 0:00:39]} 37. Nf5 {[%emt 0:00:44]} Rxd4 {[%emt 0:01:41]} 38. Ne7+ {[%emt 0:00:18]} Kg7 {[%emt 0:00:09]} 39. Rxd4 {[%emt 0:00:02]} Bb5 {[%emt 0:01:07]} 40. Nd5 {[%emt 0:00:00]} Rc8 {[%emt 0:00:00]} 41. g4 {[%emt 0:17:00]} Rc2+ {[%emt 0:02:43]} 42. Kg3 {[%emt 0:01:10]} Ra2 {[%emt 0:09:32]} 43. g5 {[%emt 0:02:03]} Rxa5 {[%emt 0:03:27]} 44. Nf6 {[%emt 0:00:48]} Ra3+ {[%emt 0:00:18]} 45. Kh4 {[%emt 0:06:36]} Rd3 {[%emt 0:07:27]} 46. Re4 {[%emt 0:00:44]} Bd7 {[%emt 0:01:04]} 47. Nxd7 {[%emt 0:01:44]} Rxd7 {[%emt 0:00:06]} 48. Kg4 {[%emt 0:00:56]} Rd2 {[%emt 0:04:15]} 49. Re7 {[%emt 0:01:07]} b5 {[%emt 0:00:53]} 50. Ra7 {[%emt 0:00:19]} Ra2 {[%emt 0:00:56]} 51. h4 {[%emt 0:01:05]} b4 {[%emt 0:01:59]} 52. h5 {[%emt 0:00:21]} gxh5+ {[%emt 0:00:23]} 53. Kxh5 {[%emt 0:00:06]} b3 {[%emt 0:03:38]} 54. f5 {[%emt 0:00:42]} Rh2+ {[%emt 0:00:09]} 55. Kg4 {[%emt 0:00:26]} b2 {[%emt 0:01:14]} 56. Rb7 {[%emt 0:00:54]} a5 {[%emt 0:03:17]} 57. Rb8 {[%emt 0:01:26]} Rg2+ {[%emt 0:01:16]} 58. Kh5 {[%emt 0:00:54]} Rh2+ {[%emt 0:01:39]} 59. Kg4 {[%emt 0:00:00]} h5+ $19 {[%emt 0:00:47]} 60. Kg3 {[%emt 0:01:35]} Rc2 {[%emt 0:00:28]} 61. Rb7 {[%emt 0:01:02]} a4 {[%emt 0:01:01]} 62. g6 {[%emt 0:00:19]} a3 {[%emt 0:00:35]} 63. Rxf7+ {[%emt 0:01:06]} Kg8 {[%emt 0:00:04]} 64. Rb7 {[%emt 0:00:47]} a2 {[%emt 0:00:40]} 65. f6 {[%emt 0:00:31]} b1=Q {[%emt 0:00:31]} 66. Rg7+ {[%emt 0:00:29]} Kf8 {[%emt 0:00:05]} 67. Rf7+ {[%emt 0:00:25]} Ke8 {[%emt 0:00:06]} 68. Re7+ {[%emt 0:00:33]} Kd8 {[%emt 0:00:04]} 69. g7 {[%emt 0:00:30]} Qg1+ {[%emt 0:00:40]} 70. Kf4 {[%emt 0:00:22]} Qg4+ {[%emt 0:00:20]} 71. Ke3 {[%emt 0:00:38]} Re2+ {[%emt 0:00:12]} 72. Kd3 {[%emt 0:00:32]} Rxe7 {[%emt 0:00:14] Kd4} 0-1

[Event "WYCC 2018 G18"]
[Site "Halkidiki"]
[Date "2018.10.30"]
[Round "11"]
[White "Muratova, Saltanat"]
[Black "Du, Yuxin"]
[Result "0-1"]
[ECO "B12"]
[WhiteElo "1859"]
[BlackElo "2011"]
[Annotator "NA"]
[PlyCount "70"]
[EventDate "2018.10.20"]
[EventType "swiss"]
[EventCountry "GRE"]
[SourceTitle "playchess.com"]
[Source "ChessBase"]
[SourceQuality "1"]
[TimeControl "40/5400+30:1800+30"]

1. e4 {[%emt 0:00:00]} c6 {[%emt 0:00:00]} 2. d4 {[%emt 0:00:00]} d5 {[%emt 0:00:00]} 3. e5 {[%emt 0:00:00]} Bf5 {[%emt 0:00:00]} 4. Nf3 {[%emt 0:00:00]} e6 {[%emt 0:00:00]} 5. Be2 {[%emt 0:00:00]} c5 {[%emt 0:01:43]} 6. Be3 {[%emt 0:00:03]} Qb6 {[%emt 0:01:43]} 7. Nc3 {[%emt 0:00:14]} Qxb2 {[%emt 0:01:50]} 8. Qb1 {[%emt 0:00:29]} Qxb1+ {[%emt 0:00:25]} 9. Rxb1 {[%emt 0:00:06]} c4 {[%emt 0:00:21]} 10. Rxb7 {[%emt 0:00:11]} Nc6 {[%emt 0:00:13]} 11. Nb5 {[%emt 0:00:13]} Nd8 {[%emt 0:00:34]} 12. Rc7 {[%emt 0:01:26]} Bxc2 {[%emt 0:57:11]} 13. Bc1 {[%emt 0:14:08]} Ba4 {[%emt 0:09:41]} 14. Nd6+ {[%emt 0:04:03]} Bxd6 {[%emt 0:00:07]} 15. exd6 {[%emt 0:00:04]} Nf6 {[%emt 0:03:08]} 16. Ne5 {[%emt 0:05:49]} O-O {[%emt 0:20:03]} 17. d7 $14 {[%emt 0:15:42]} Nxd7 {[%emt 0:00:10]} 18. Nxd7 {[%emt 0:00:08]} Bxd7 {[%emt 0:00:04]} 19. Rxd7 {[%emt 0:00:04]} Nc6 {[%emt 0:00:06]} 20. Ba3 {[%emt 0:02:28]} Rfb8 {[%emt 0:00:40]} 21. Bc5 {[%emt 0:00:29]} Rb1+ {[%emt 0:00:15]} 22. Bd1 {[%emt 0:00:04]} a6 {[%emt 0:02:10]} 23. O-O {[%emt 0:00:27]} Rb2 {[%emt 0:00:28]} 24. a3 {[%emt 0:04:38]} h6 {[%emt 0:00:32]} 25. f4 {[%emt 0:05:16]} Rd2 {[%emt 0:00:30]} 26. Ba4 {[%emt 0:00:20]} Nxd4 {[%emt 0:00:28]} 27. Bxd4 {[%emt 0:01:21]} Rxd4 {[%emt 0:00:05]} 28. f5 {[%emt 0:00:19]} e5 {[%emt 0:00:57]} 29. Bc6 {[%emt 0:00:22]} Rc8 {[%emt 0:00:28]} 30. Bxd5 {[%emt 0:01:53]} c3 {[%emt 0:00:07]} 31. Bxf7+ {[%emt 0:06:44]} Kf8 {[%emt 0:00:06]} 32. Rxd4 {[%emt 0:00:21]} exd4 {[%emt 0:00:06]} 33. Be6 {[%emt 0:00:02]} c2 {[%emt 0:01:36]} 34. Bxc8 {[%emt 0:16:38]} d3 {[%emt 0:00:08]} 35. f6 {[%emt 0:00:02]} d2 {[%emt 0:00:28]} 0-1